Cogmind - Beta 15 @@@ ROGUE MODE // 2025.05.29 @ 21:26:14 Player: 7604 Result: Destroyed by D-53 Grenadier with Mini Grenade Launcher Performance ------------- Evolutions (0) 0 Regions Visited (2) 400 Robots Destroyed (33) 165 Value Destroyed (633) 633 Prototype IDs (2) 40 Alien Tech Used (0) 0 Bonus (0) 0 TOTAL SCORE: 1238 Bonus ------- None Cogmind --------- Core Integrity 0/250 Matter 290/300 Energy 142/160 System Corruption 0% Temperature Cool (8) Movement Treading (480) Ox4 Location -10/Mines Parts ------- > --- POWER (1) -------- Light Nuclear Core > --- PROPULSION (2) --- Light Treads > --- UTILITY (2) ------ Improved Heat Sink Huge Storage Unit > --- WEAPON (2) ------- Beam Cannon Beam Cannon > --- INVENTORY (25) --- Ion Engine Light Ion Engine Light Nuclear Core Light Treads Heat Sink Improved Terrain Scanner Seismic Detector Seismic Detector Seismic Detector Seismic Detector ECM Suite Hacking Suite Beam Cannon Beam Cannon Beam Cannon Assault Rifle Grenade Launcher Grenade Launcher Datajack Mining Laser Peak State ------------ > --- POWER ------------ Light Nuclear Core > --- PROPULSION ------- Light Treads Light Treads > --- UTILITY ---------- Improved Heat Sink High-capacity Storage Unit > --- WEAPON ----------- Beam Cannon Beam Cannon > --- INVENTORY -------- Ion Engine Light Ion Engine Light Nuclear Core Light Treads Heat Sink Improved Terrain Scanner Seismic Detector Seismic Detector Seismic Detector Seismic Detector Hacking Suite Beam Cannon Beam Cannon Beam Cannon Beam Cannon Assault Rifle Grenade Launcher Grenade Launcher Datajack Mining Laser [Rating: 13] Favorites ----------- Power Ion Engine Engine Ion Engine Power Core Light Nuclear Core Propulsion Light Treads Treads Light Treads Utility Seismic Detector Device Seismic Detector Storage High-capacity Storage Unit Weapon Beam Cannon Energy Gun Small Laser Energy Cannon Beam Cannon Ballistic Gun Assault Rifle Launcher Grenade Launcher Special Weapon Mining Laser Build | -11 -10 -10 ------- Run | Yrd Mat Min Slots Evolved . | . . . Power . | . . . Propulsion . | . . . Utility . | . . . Weapon . | . . . Parts Attached 24 | 7 11 6 Power 2 | 1 . 1 Engine 1 | 1 . . Core 1 | . . 1 Reactor . | . . . Propulsion 4 | 2 1 1 Treads 4 | 2 1 1 Leg . | . . . Wheel . | . . . Hover . | . . . Flight . | . . . Utility 8 | 2 3 3 Device 4 | 1 1 2 Storage 4 | 1 2 1 Processor . | . . . Hackware . | . . . Protection . | . . . Artifact . | . . . Weapon 10 | 2 7 1 Energy Gun 2 | . 2 . Energy Cannon 3 | . 2 1 Ballistic Gun 2 | 2 . . Ballistic Cannon . | . . . Launcher 2 | . 2 . Special Weapon 1 | . 1 . Impact Weapon . | . . . Slashing Weapon . | . . . Piercing Weapon . | . . . Special Melee Weapon . | . . . Unidentified Prototypes . | . . . Parts Lost 5 | . 2 3 Power . | . . . Propulsion 3 | . 1 2 Utility . | . . . Weapon 2 | . 1 1 Highest Loss Streak 2 | . 1 2 To Critical Strikes . | . . . Average Backups 14 | 4 14 18 Power 1 | . 1 2 Propulsion 1 | . 2 1 Utility 5 | 2 5 6 Weapon 5 | 1 4 8 Tool/Special . | . . . Unused Backups 14 | . 2 12 Power 2 | . . 2 Propulsion 1 | . . 1 Utility 6 | . 1 5 Weapon 3 | . . 3 Tool/Special 2 | . 1 1 Average Slot Usage (%) 99 | . 99 99 Engine 12 | . 14 9 Core 1 | . . 4 Treads 27 | . 27 27 Device 14 | . 14 14 Storage 14 | . 14 14 Energy Gun 4 | . 7 . Energy Cannon 14 | . 7 27 Ballistic Gun 7 | . 12 . Peak Build Rating 13 | 8 9 13 Average Rating 8 | 6 8 9 On Entrance 5 | . 8 9 Naked Turns . | . . . Heaviest Build 92 | 15 52 92 Greatest Support 40 | 40 40 40 Greatest Overweight (x) 2 | . 1 2 Average Overweight (x) . | . . 1 Largest Inventory Capacity 25 | 8 20 25 Average Capacity 16 | 7 15 21 Most Carried 21 | 8 20 21 Average Carried 14 | 4 14 18 Final Capacity 25 | 8 20 25 Final Carried 20 | 8 19 20 Class Distribution -------------------- 100% | Mutant Dominant Class ---------------- Mutant | -10/Materials Mutant | -10/Mines Resources | -11 -10 -10 ----------- Run | Yrd Mat Min Matter Collected 797 | 344 373 80 Remotely . | . . . Salvage Created 774 | 116 528 130 Parts 70 | 25 28 17 Haulers Intercepted 2 | . 2 . Recyclers Shooed 1 | 1 . . Parts Field Recycled . | . . . Retrieved Matter . | . . . Parts Self-Destructed . | . . . Prevented . | . . . Kills | -11 -10 -10 ------- Run | Yrd Mat Min Combat Hostiles Destroyed 18 | . 10 8 Guns 7 | . 7 . Cannons 6 | . 2 4 AOE 5 | . 1 4 Classes Destroyed 6 | 1 5 . Tunneler 9 | 8 . 1 Hauler 2 | . 2 . Operator 1 | . 1 . Watcher 3 | . 3 . Swarmer 8 | . 2 6 Grunt 10 | . 8 2 Best Kill Streak 3 | 2 3 3 Combat Bots Only 3 | . 3 3 Max Kills in Single Turn 3 | 1 1 3 Gunslinging . | . . . Exploded 3 | . 1 3 Melee . | . . . Uniques/NPCs Destroyed . | . . . Combat | -11 -10 -10 -------- Run | Yrd Mat Min Hostile Shots Fired 106 | . 65 41 Missed 23 | . 16 7 Hits 83 | . 49 34 Projectile 83 | . 49 34 AOE 10 | . . 10 Damage Taken 1238 | . 598 640 Core 264 | . 52 212 Absorbed by Shields . | . . . Core Remaining (%) 100 | 100 . . Volleys Fired 76 | 17 49 10 Largest 2 | 2 2 2 Hottest 120 | 40 120 120 Shots Fired 149 | 34 96 19 Gun 113 | 34 79 . Cannon 32 | . 14 18 Launcher 3 | . 2 1 Special 1 | . 1 . Kinetic 97 | 34 63 . Thermal 49 | . 31 18 Explosive 3 | . 2 1 Electromagnetic . | . . . Robot Hit Streak 12 | 7 12 7 Robot Miss Streak 3 | 3 3 2 Penetration Max . | . . . Secondary Targets . | . . . Shots Hit Robots 95 | 22 63 10 Core Hits 50 | 9 31 10 Critical Kills . | . . . Critical Parts Destroyed 1 | 1 . . Critical Strikes 1 | 1 . . Destroy 1 | 1 . . Melee Attacks . | . . . Impact . | . . . Slashing . | . . . Piercing . | . . . Sneak Attacks . | . . . Combat Hostiles . | . . . Follow-up Attacks . | . . . Damage Inflicted 1630 | 342 881 407 Guns 1020 | 336 684 . Cannons 368 | . 140 228 Explosions 213 | . 57 156 Melee . | . . . Ramming 29 | 6 . 23 Kinetic 853 | 336 517 . Thermal 578 | . 307 271 Explosive 170 | . 57 113 Electromagnetic . | . . . Impact . | . . . Slashing . | . . . Piercing . | . . . Highest Corruption . | . . . Average Corruption . | . . . Corruption Purged . | . . . Corruption Blocked . | . . . Overload Shots . | . . . Overflow Damage . | . . . Projectiles . | . . . Explosions . | . . . Melee . | . . . Knockbacks . | . . . Impact . | . . . Kinetic . | . . . Secondary . | . . . Self-Inflicted Damage 17 | . . 17 Shots 1 | . . 1 Rammed 3 | 2 . 1 Targets Rammed 4 | 2 . 2 Kicked . | . . . Crushed 1 | . . 1 Highest Temperature 220 | . 210 220 Average Temperature 67 | . 58 83 Received Heat Transfer 348 | . 309 39 Siege Activations . | . . . Martial Activations . | . . . Shielding Activations . | . . . Robots Disrupted . | . . . Combat Hostiles . | . . . Robots Corrupted . | . . . Combat Hostiles . | . . . Parts Fried . | . . . Impact Corruptions . | . . . Robots Melted . | . . . Combat Hostiles . | . . . Parts Melted 2 | . 1 1 Heat Transferred 1202 | . 671 531 Parts Sabotaged . | . . . Parts Stolen . | . . . Parts Stripped . | . . . Power Chain Reactions . | . . . Alert | -11 -10 -10 ------- Run | Yrd Mat Min Maximum Alert Level . | . . . Low Security (%) 100 | 100 100 100 Level 1 . | . . . Level 2 . | . . . Level 3 . | . . . Level 4 . | . . . Level 5 . | . . . High Security . | . . . Max Security . | . . . Peak Influence 164 | 5 117 164 Initial 22 | . . 22 Average 32 | 1 34 40 Influence Increases 717 | 40 430 247 Destroy 0b10 Robot/C 360 | . 200 160 Destroy 0b10 Robot/NC 75 | 40 30 5 Destroy Leader 90 | . 60 30 Successful Hack 39 | . 39 . Select Force Hacks 60 | . 60 . Disable Machine 45 | . 15 30 Destroy Structure 33 | . 11 22 Lose Combat Pursuer 15 | . 15 . Influence Decreases 717 | 40 372 305 Entered New Map 36 | . . 36 Time Decay 661 | 40 362 259 Lost Part 20 | . 10 10 Squads Dispatched 4 | . 4 . Investigation 3 | . 3 . Extermination . | . . . Reinforcement 1 | . 1 . Assault . | . . . Garrison . | . . . Intercept . | . . . Searches Triggered . | . . . Construction Impeded . | . . . Haulers Reinforced . | . . . Active Scanning Responses . | . . . Cargo Convoy Interrupts . | . . . Stealth | -11 -10 -10 --------- Run | Yrd Mat Min Distress Signals 1 | . 1 . Communications Jammed . | . . . Distress Signals . | . . . Times Spotted 41 | . 21 20 Peak Tracking Total 10 | . 4 10 Tactical Retreats 1 | . 1 . Traps | -11 -10 -10 ------- Run | Yrd Mat Min Traps Triggered 1 | . 1 . Indirectly . | . . . Trap Hack Attempts . | . . . Triggered . | . . . Disarmed . | . . . Reprogrammed . | . . . Reused . | . . . Traps Extracted . | . . . Installed . | . . . Triggered . | . . . Machines | -11 -10 -10 ---------- Run | Yrd Mat Min Machines Disabled 3 | . 1 2 Max in Single Turn 2 | . 1 2 Machines Repaired . | . . . Machines Dismantled . | . . . Machines Sabotaged . | . . . Overloaded Fab Kills . | . . . Hacking | -11 -10 -10 --------- Run | Yrd Mat Min Machines Accessed 9 | . 9 . Terminals 7 | . 7 . Fabricators . | . . . Repair Stations . | . . . Recycling Units 2 | . 2 . Scanalyzers . | . . . Garrison Access . | . . . Total Hacks 27 | . 27 . Successful 16 | . 16 . Failed 10 | . 10 . Catastrophic 1 | . 1 . Database Lockouts 1 | . 1 . Manual 23 | . 23 . Terminals 23 | . 23 . Fabricators . | . . . Repair Stations . | . . . Recycling Units 4 | . 4 . Scanalyzers . | . . . Garrison Access . | . . . Terminal Hacks 6 | . 6 . Part Schematic 1 | . 1 . Robot Schematic 1 | . 1 . Robot Analysis 1 | . 1 . Prototype ID Bank 1 | . 1 . Locate Traps 1 | . 1 . Patrol Status 1 | . 1 . Fabricator Hacks . | . . . Repair Station Hacks . | . . . Recycling Unit Hacks . | . . . Scanalyzer . | . . . Garrison Access Hacks . | . . . Unauthorized Hacks 10 | . 10 . Terminals 8 | . 8 . Botnet 2 | . 2 . Operators 1 | . 1 . Skim 5 | . 5 . Fabricators . | . . . Repair Stations . | . . . Recycling Units 2 | . 2 . Tunnel 2 | . 2 . Scanalyzers . | . . . Garrison Access . | . . . Data Cores Recovered . | . . . Used . | . . . Hacking Detections 6 | . 6 . Full Trace Events . | . . . Feedback Events . | . . . Feedback Blocked . | . . . Robot Schematics Acquired 1 | . 1 . Robots Built . | . . . Authchips . | . . . Time . | . . . Total Robot Build Rating . | . . . Part Schematics Acquired 1 | . 1 . Parts Built . | . . . Authchips . | . . . Time . | . . . Total Part Build Rating . | . . . Parts Repaired . | . . . Time . | . . . Parts Recycled . | . . . Recycled Matter . | . . . Retrieved Matter . | . . . Retrieved Components . | . . . Parts Scanalyzed . | . . . Part Schematics Acquired . | . . . Parts Damaged . | . . . Bothacking | -11 -10 -10 ------------ Run | Yrd Mat Min Used RIF Installer . | . . . Robots Hacked . | . . . Non-combat . | . . . Combat . | . . . Robot Hacks Applied . | . . . Relay Couplers Released . | . . . Fabnet Peak Effective % . | . . . Robots Rewired . | . . . Allies Hacked . | . . . Hacks Repelled . | . . . Allies | -11 -10 -10 -------- Run | Yrd Mat Min Total Allies . | . . . Largest Group . | . . . Highest-Rated Group . | . . . Highest-Rated Ally . | . . . Total Orders . | . . . Ally Attacks . | . . . Total Damage . | . . . Kills . | . . . Allies Corrupted . | . . . Allies Melted . | . . . Intel | -11 -10 -10 ------- Run | Yrd Mat Min Active Infowar (turns) 2589 | 255 1465 869 Seismic 2589 | 255 1465 869 Robot Analysis Total 1 | . 1 . Derelict Logs Recovered 2 | . . 2 Drone Launches . | . . . Drone Recoveries . | . . . Exploration | -11 -10 -10 ------------- Run | Yrd Mat Min Turns Passed 2704 | 319 1478 907 Spaces Moved 1148 | 153 658 337 Core 5 | 5 . . Treads 1143 | 148 658 337 Legs . | . . . Wheels . | . . . Hover . | . . . Flight . | . . . Fastest Speed 50 | 50 160 240 Average Speed 202 | 156 186 254 Slowest Speed 320 | 160 240 320 Overloaded Moves . | . . . Propulsion Burnouts . | . . . Robots Hopped . | . . . Potential Cave-ins . | . . . Cave-ins Triggered . | . . . Exploration Rate (%) 56 | 8 95 65 Regions Visited 2 Branch Regions 1 Pre-discovered Areas 4 | . 2 2 Known Exits Taken 1 | . 1 . Unknown Exits Taken 1 | 1 . . Scrap Searched 1 | . . 1 Spaces Dug 10 | . 1 9 Terrain Destroyed 31 | . 9 22 Melee . | . . . Projectile 1 | . 1 . AOE 30 | . 8 22 Terrain Rammed . | . . . Walls Destroyed . | . . . Machines Disabled . | . . . Actions | -11 -10 -10 --------- Run | Yrd Mat Min Total 1367 | 194 811 362 Wait 77 | 8 68 1 Move 1146 | 152 657 337 Hop . | . . . Pick Up 23 | 8 14 1 Fast Attach 9 | 7 2 . Attach 4 | . 2 2 Detach 2 | . 2 . Swap 19 | . 11 8 Drop 7 | . 6 1 Fire 76 | 17 49 10 Melee . | . . . Ram . | . . . Kick . | . . . Crush 4 | 2 . 2 Escape Stasis . | . . . Rewire . | . . . Trap . | . . . Miscellaneous . | . . . Route ------- -11/Scrapyard -10/Materials (discovered 5 exits: *Mat x3 / *Min / Sub) -10/Mines (discovered 2 exits: *Mat / *Sub) History --------- Turn | Location | Event 4 | -11/Scrapyard | Discovered new exit (range 15) 320 | -11/Scrapyard | Entered Materials 321 | -10/Materials | Build established: Mutant 849 | -10/Materials | Discovered new exit (range 4) 920 | -10/Materials | Derelicts attacked the area 1005 | -10/Materials | Loaded intel: 1 repair station location 1028 | -10/Materials | Discovered new exit (range 14) 1047 | -10/Materials | Central database locked down 1190 | -10/Materials | Learned location of 1 exit from Storage 1235 | -10/Materials | Identified exit to Materials 1235 | -10/Materials | Identified exit to Mines 1313 | -10/Materials | Identified exit to Subcaves 1313 | -10/Materials | Learned location of 1 exit from Materials 1369 | -10/Materials | Learned location of 1 exit from Storage 1798 | -10/Materials | Entered Mines 2100 | -10/Mines | Learned location of Mines (-9) 2160 | -10/Mines | Discovered exit to Materials (range 14) 2170 | -10/Mines | Learned location of Storage (-8) 2489 | -10/Mines | Found DCF Scrap (12 items) 2670 | -10/Mines | Assembled infested the area 2697 | -10/Mines | Core integrity fell below 50% 2700 | -10/Mines | Core integrity fell below 20% 2705 | -10/Mines | Destroyed by D-53 Grenadier with Mini Grenade Launcher Last Messages --------------- 02580_ T-07 Excavator destroyed. 02670_ ALERT: Infestation in the mines, dispatching Demolisher response squad. 02685_ C-30 ARC bursts open, deploying its payload. 02685_ D-53 Grenadier unfolds itself. 02687_ as-49829 destroyed. 02687_ K-01 Serf destroyed. 02687_ as-70840 destroyed. 02689_ as-76681 destroyed. 02698_ The unstable cave ceiling collapses. 02698_ as-29740 destroyed. 02700_ Beam Cannon destroyed. 02700_ as-60497 destroyed. 02701_ as-50456 destroyed. 02703_ U-05 Engineer lays Concrete. 02704_ The unstable cave ceiling collapses. 02704_ Lgt. Treads destroyed. 02704_ U-05 Engineer lays Concrete. 02705_ The unstable cave ceiling collapses. Map ----- +----------------------------------------------------+ | ??????????????????????????????????? ????????????? | | ??????????????????????????????????# ????????????? | | ??????????????????????????????????# ????????????? | | ??????????????????????????????????# ????????##### | | ?????????????????????????????#????# ????????# | | ?????????????????????????????# #?# #????#### | | ?????????????????????????????# #?# #????# ### | | ??????????????????????? ###??# #?# #????# #?? | | ??????????????????????? ###"%### ???# ###?? | | ?????????????????????? ## "## #???# #???? | | ?????????????????????? #????# #???? | | ?????????????????????? #????# #???? | | ??????????????????????# ###### #???? | | ???????????????????????# =% #???? | | ??????????????????????? =% #???? | | ???????????????????????# =[#######???? | | ??????????????????###### d%d # ##?????????? | | ??????????????????# # ##??????????? | | ??????????????????# ###?????????? | | ??????????????????# ### #?????????? | | ???????????????# ## # # u #?????????? | | ???????????????? ### #?????????? | | ??????????????????# a # ####?# #?????????? | | ??????????????????# #????# #?????????? | | ?????????????????## ##???# #?????????? | | ?????????? a @ #???# #?????????? | | ????????? a $ #??# ########### | | ?????????? ##### #??# % | | ?????????? ???????## #??############# | | ?????????????????????## ##??????????????? | | ??????????????????????####### #???????????????? | | ????????????????????????????# #???????????????? | | ????????????????????????????# ##???????????????? | | ????????????????????????????#####????????????????? | | ?????????????????????????????????????????????????? | | ?????????????????????????????????????????????????? | | ?????????????????????????????????????????????????? | | | | | | | | | | | | | | | | | | | | | | | | | | | +----------------------------------------------------+ Best States ------------- Heat Dissipation 39 Energy Generation 14 Energy Capacity 250 Matter Stores 300 Matter Capacity 300 Sight Range 16 Terrain Scan Density 10 Evasion (%) 40 Recoil Reduction 2 Item Schematics ----------------- Huge Storage Unit | -10/Materials | Hacked Robot Schematics ------------------ M-13 Machinist | -10/Materials | Hacked Fabricated ------------ Nothing Repaired ---------- Nothing Alien Tech Used ----------------- None Achievements -------------- None Challenges ------------ None Game ------ Seed CommKineticDeflector Manual? 0 Play Time 00:13:10 Cumulative 396.6 hours Start 2025.05.29 @ 21:14:43 End 2025.05.29 @ 21:26:14 Sessions 1 Manual Loads 0 Difficulty Rogue Special Mode None Game No. 195 Rogue 132 Adventurer 63 Explorer 0 Win Type - Total 8 Types 7/0/0/1/0/0/0/0/0/0 Lore% 84 Gallery% 77 Achievement% 64 Wizard Run 0 Options --------- Layout 2 ASCII 0 Keyboard 1 Movement Numpad Keybinds 0 Fullscreen 1 Font 24/Terminus Map View 50x44 Zoom Use 0% Tactical HUD 1 Map Filters NONE Filters NONE Steam 1 RUN: e34a4976-3b10-4683-9df5-93d3a71b1407